{"text_format":"1","workbook":"xlsx","n_sheets":9,"sheets":["Инф-я","НВВ для шаблона ЕИАС","Форма 1.1","Форма 1.2","Форма 2.1","Форма 2.2","форма 2.3","форма 2.4","Выбор оценочного балла"],"not_rendered":{"charts":0,"images":0,"macros":1,"external_links":6,"defined_names":227,"comments":0,"pivot_tables":0},"unopened":[],"bounds":{"document_bytes":16777216,"sheet_cells":100000,"rows_first":2000,"rows_last":500,"rows_between":2000,"halvings":0,"cell_chars":16384,"cell_head_chars":4096},"cells_cut":0,"cells_raw":0,"read":"whole","date_system":"1900"}

{"sheet":"Инф-я","index":0,"n_rows":41,"n_cols":3,"rows_kept":41,"cut":false,"hidden":false,"merged":[[40,0,40,2],[4,1,4,2],[1,0,1,2],[34,0,34,2],[36,0,36,2],[37,0,37,2],[38,0,38,2],[39,0,39,2]]}
[]
["Расчет НВВ на услуги по передаче электрической энергии,  устанавливаемых с применением метода долгосрочной индексации необходимой валовой выручки"]
[]
[]
[null,"Информация об организации"]
[]
["№ п/п","Требуемая информация","Данные об организации"]
["1.","Наименование организации в соответствии с уставом:","Открытое акционерное общество \"Ставровский завод автотракторного оборудования\""]
[null,"полное наименование организации ","ОАО \"Ставровский завод автотракторного оборудования\""]
[null,"сокращенное название организации ","ОАО \"Ставровский завод АТО\""]
["2.","Муниципальное образование"]
["3.","Адрес организации:","Владимирская область, п. Ставрово, ул. Октябрьская, д.118"]
[null,"юридический адрес","Владимирская область, п. Ставрово, ул. Октябрьская, д.119"]
[null,"фактический адрес (месторасположение)","Владимирская область, п. Ставрово, ул. Октябрьская, д.120"]
["4.","ИНН",3323000123]
["5.","КПП",332301001]
["6.","ФИО руководителя организации","Айзатуллин Сяяр Жафярович"]
[null,"контактный телефон/факс","8(49242) 5-15-87"]
[null,"е-mail","info@oaostato.ru"]
["7.","ФИО начальника ПЭО","Александрова Ирина Львовна"]
[null,"контактный телефон/факс","8(49242) 5-15-71"]
["8.","ФИО ответственного за электрохозяйство","Трутнев Юрий Владимирович"]
[null,"контактный телефон/факс","8(49242) 5-17-87"]
["9.","ФИО главного бухгалтера","Симагин Вячеслав Николаевич"]
[null,"контактный телефон/факс","8(49242) 5-10-71"]
["10.","ФИО непосредственного исполнителя","Александрова Ирина Львовна"]
[null,"контактный телефон/факс","8(49242) 5-15-71"]
[null,"е-mail","aleksandrova@oaostato.ru"]
["11.","Банковские реквизиты:"]
[null,"расчетный счет",4.0702810610020098E+19]
[null,"банк","Владимирский ОСБ № 8611, г.Владимир, пр.Ленина,36"]
[null,"корреспондентский счет",3.010181E+19]
[null,"БИК","О41708602"]
[]
["В конце книги Excel размещены листы серого цвета для заполнения шаблона \"Расчет фактических показателей надежности и качества за 2014 год\". Согласно п. 14 Постановления Правительства от 31.12.2009 г.  № 1220 организации предоставляют регулирующим органам до 1 апреля года, следующего за отчетным, отчетные данные, используемые при расчете фактических значений показателей надежности и качества."]
[]
["Согласно п. 9 Постановления Правительства РФ от 21.01.2004 г. № 24 \"Об утверждении стандартов раскрытия информации субъектами оптового и розничных рынков электрической энергии\":"]
["\"Субъекты рынков электрической энергии раскрывают следующую информацию:"]
["г) предложение о размере цен (тарифов), долгосрочных параметров регулирования (при применении метода доходности инвестированного капитала или метода долгосрочной необходимой валовой выручки), подлежащих регулированию в соответствии с Основами ценообразования в области регулируемых цен (тарифов) в электроэнергетике, утвержденными постановлением Правительства Российской Федерации от 29 декабря 2011 г. № 1178\"."]
["Согласно п. 9.1 Правил государственного регулирования (пересмотра, применения) цен (тарифов) в электроэнергктике, утвержденных постановлением Правительства РФ от 29 декабря 2011 г. N 1178:"]
["\"Регулирующий орган отказывает в открытии дела об установлении цены (тарифа), в случае если регулируемая организация не опубликовала предложение о размере цен (тарифов) и долгосрочных параметров регулирования (при применении метода доходности инвестированного капитала или метода долгосрочной индексации необходимой валовой выручки), подлежащих регулированию, в порядке, установленном стандартами раскрытия информации субъектами оптового и розничных рынков электрической энергии, утвержденными постановлением Правительства Российской Федерации от 21 января 2004 г. N 24, или указанное опубликованное предложение не соответствует предложению, представляемому в орган регулирования\"."]

{"sheet":"НВВ для шаблона ЕИАС","index":1,"n_rows":8,"n_cols":65,"rows_kept":8,"cut":false,"hidden":true,"merged":[[2,35,3,35],[1,12,1,32],[2,36,3,36],[2,37,3,37],[1,33,1,50],[2,50,3,50],[2,42,3,42],[2,43,3,43],[2,48,3,48],[2,49,3,49],[2,38,3,38],[2,39,3,39],[2,44,3,44],[2,45,3,45],[2,46,3,46],[2,47,3,47],[2,40,3,40],[2,41,3,41],[2,33,3,33],[2,34,3,34],[2,25,3,25],[2,26,3,26],[2,27,3,27],[2,28,3,28],[2,31,3,31],[2,32,3,32],[2,29,3,29],[1,60,3,60],[1,61,3,61],[2,23,3,23],[2,30,3,30],[1,62,2,63],[1,64,3,64],[1,51,3,51],[1,52,3,52],[1,53,2,54],[1,55,3,55],[2,15,3,15],[2,16,3,16],[2,17,3,17],[2,13,3,13],[2,14,3,14],[1,59,3,59],[1,56,3,56],[1,57,3,57],[1,58,3,58],[2,24,3,24],[2,8,3,8],[2,9,3,9],[2,10,3,10],[2,2,3,2],[2,18,3,18],[2,22,3,22],[2,21,3,21],[2,19,3,19],[2,20,3,20],[2,12,3,12],[2,3,3,3],[2,4,3,4],[2,5,3,5],[2,11,3,11],[0,0,0,1],[1,0,4,0],[1,1,4,1],[1,2,1,11],[2,6,3,6],[2,7,3,7]]}
["Расчет НВВ методом индексации"]
["Наименование организации","Период","Расчет коэффициента индексации",null,null,null,null,null,null,null,null,null,"Расчет подконтрольных расходов",null,null,null,null,null,null,null,null,null,null,null,null,null,null,null,null,null,null,null,null,"Расчет неподконтрольных расходов",null,null,null,null,null,null,null,null,null,null,null,null,null,null,null,null,null,"Расходы, связанные с компенсацией незапланированных расходов или полученного избытка","Итого НВВ на содержание сетей","в том числе",null,"Доля стороннего отпуска в сеть от организаций, занимающихся несколькими видами деятельности (без собственных нужд)","Отношение НВВ на содержание сетей текущего года к предыдущему года","Поступление в сеть электроэнергии","Объем технологического расхода (потерь)","Тариф на покупку потерь ","Норматив техноло-гического расхода (потерь) электро-энергии ","Итого расходов на оплату потерь","в том числе",null,"Прирост расходов на оплату потерь текущего года к предыдущему году"]
[null,null,"Инфляция","Индекс эффективности операционных расходов","Количество активов, всего","ВН","СН1","СН2","НН","Индекс изменения количества активов","Коэффициент эластичности затрат по росту активов","Итого коэффициент индексации","Материальные затраты","Сырье, материалы, запасные части, инструмент, топливо","Работы и услуги производственного характера (в т.ч. услуги сторонних организаций по содержанию сетей и распределительных устройств)","Расходы на оплату труда","Прочие расходы, всего, в том числе:","Ремонт основных фондов","Оплата работ и услуг сторонних организаций","услуги связи","Расходы на услуги вневедомственной охраны и коммунального хозяйства","Расходы на юридические и информационные услуги","Расходы на аудиторские и консультационные услуги","Транспортные услуги","Прочие услуги сторонних организаций","Расходы на командировки и представительские","Расходы на подготовку кадров","Расходы на обеспечение нормальных условий труда и мер по технике безопасности","Расходы на страхование","Другие прочие расходы","Электроэнергия на хоз. нужды","Подконтрольные расходы из прибыли","ИТОГО подконтрольные расходы","Оплата услуг ОАО \"ФСК ЕЭС\"","Теплоэнергия","Аренда, всего","в том числе аренда объектов электро-\nсетевого комплекса","Налоги (без учета налога на прибыль), всего, в том числе:","плата за землю","Налог на имущество","Прочие налоги и сборы","Отчисления на социальные нужды (ЕСН)","Прочие неподконтрольные расходы","Налог на прибыль, в том числе:","налог на прибыль на капитальные вложения ","Выпадающие доходы по п.87 Основ ценообразования","Амортизация ОС","Прибыль на капитальные вложения","Возврат заемных средств, направляемый на финансирование капитальных вложений","Проверка прибыли на капитальные вложения (не более 12% от НВВ на содержание сетей)","ИТОГО неподконтрольных расходов"]
[null,null,null,null,null,null,null,null,null,null,null,null,null,null,null,null,null,null,null,null,null,null,null,null,null,null,null,null,null,null,null,null,null,null,null,null,null,null,null,null,null,null,null,null,null,null,null,null,null,null,null,null,null,"НВВ на 1 полугодие","НВВ на 2 полугодие",null,null,null,null,null,null,null,"расходы на 1 полугодие","расходы на 2 полугодие"]
[null,null,"%","%","у.е.","у.е.","у.е.","у.е.","у.е.","%",null,null,"тыс.руб","тыс.руб","тыс.руб","тыс.руб","тыс.руб","тыс.руб","тыс.руб","тыс.руб","тыс.руб","тыс.руб","тыс.руб","тыс.руб","тыс.руб","тыс.руб","тыс.руб","тыс.руб","тыс.руб","тыс.руб","тыс.руб","тыс.руб","тыс.руб","тыс.руб","тыс.руб","тыс.руб","тыс.руб","тыс.руб","тыс.руб","тыс.руб","тыс.руб","тыс.руб","тыс.руб","тыс.руб","тыс.руб","тыс.руб","тыс.руб","тыс.руб","тыс.руб","%","тыс.руб","тыс.руб","тыс.руб","тыс.руб","тыс.руб","%","%","млн.кВтч","млн.кВтч","руб./МВтч","%","тыс.руб","тыс.руб","тыс.руб","%"]
[1,2,3,4,5,6,7,8,9,10,11,12,13,14,15,16,17,18,19,20,21,22,23,24,25,26,27,28,29,30,31,32,33,34,35,36,37,38,39,40,41,42,43,44,45,46,47,48,49,50,51,52,53,54,55,56,57,58,59,60,61,62,63,64,65]
[null,2015,{"$f":"#REF!","v":{"$error":"#REF!"}},{"$f":"#REF!","v":{"$error":"#REF!"}},{"$f":"#REF!","v":{"$error":"#REF!"}},{"$f":"#REF!+#REF!","v":{"$error":"#REF!"}},{"$f":"#REF!+#REF!","v":{"$error":"#REF!"}},{"$f":"#REF!+#REF!","v":{"$error":"#REF!"}},{"$f":"#REF!+#REF!","v":{"$error":"#REF!"}},null,null,null,{"$f":"SUM(N7:O7)","v":{"$error":"#REF!"}},{"$f":"#REF!","v":{"$error":"#REF!"}},{"$f":"#REF!","v":{"$error":"#REF!"}},{"$f":"#REF!","v":{"$error":"#REF!"}},{"$f":"R7+S7+Z7+AA7+AB7+AC7+AD7+AE7+AF7","v":{"$error":"#REF!"}},{"$f":"#REF!","v":{"$error":"#REF!"}},{"$f":"SUM(T7:Y7)","v":{"$error":"#REF!"}},null,null,null,null,null,{"$f":"#REF!","v":{"$error":"#REF!"}},{"$f":"#REF!","v":{"$error":"#REF!"}},{"$f":"#REF!","v":{"$error":"#REF!"}},{"$f":"#REF!","v":{"$error":"#REF!"}},{"$f":"#REF!","v":{"$error":"#REF!"}},null,null,{"$f":"#REF!","v":{"$error":"#REF!"}},{"$f":"M7+P7+Q7","v":{"$error":"#REF!"}},{"$f":"#REF!","v":{"$error":"#REF!"}},{"$f":"#REF!","v":{"$error":"#REF!"}},{"$f":"#REF!","v":{"$error":"#REF!"}},null,{"$f":"SUM(AM7:AO7)","v":{"$error":"#REF!"}},{"$f":"#REF!","v":{"$error":"#REF!"}},{"$f":"#REF!","v":{"$error":"#REF!"}},{"$f":"#REF!+#REF!","v":{"$error":"#REF!"}},{"$f":"#REF!","v":{"$error":"#REF!"}},{"$f":"#REF!","v":{"$error":"#REF!"}},{"$f":"#REF!","v":{"$error":"#REF!"}},null,{"$f":"#REF!","v":{"$error":"#REF!"}},{"$f":"#REF!","v":{"$error":"#REF!"}},{"$f":"#REF!","v":{"$error":"#REF!"}},{"$f":"#REF!","v":{"$error":"#REF!"}},{"$f":"((AV7+AW7)/(BA7-AH7-AS7-AV7-AW7-AK7))","v":{"$error":"#REF!"}},{"$f":"AH7+AI7+AJ7+AL7+AQ7+AR7+AT7+AP7+AU7+AV7+AW7","v":{"$error":"#REF!"}},null,{"$f":"SUM(AY7,AZ7,AG7)","v":{"$error":"#REF!"}},null,{"$f":"BA7-BB7","v":{"$error":"#REF!"}},null,null,null,null,null,{"$f":"IF(BF7=0,0,BG7/BF7)","v":0},{"$f":"BG7*BH7","v":0},null,{"$f":"BJ7-BK7","v":0}]
[null,2016,{"$f":"#REF!","v":{"$error":"#REF!"}},{"$f":"D7","v":{"$error":"#REF!"}},{"$f":"#REF!","v":{"$error":"#REF!"}},{"$f":"#REF!+#REF!","v":{"$error":"#REF!"}},{"$f":"#REF!+#REF!","v":{"$error":"#REF!"}},{"$f":"#REF!+#REF!","v":{"$error":"#REF!"}},{"$f":"#REF!+#REF!","v":{"$error":"#REF!"}},{"$f":"IF(E7=0,0,(E8-E7)/E7*K8)","v":{"$error":"#REF!"}},{"$f":"#REF!","v":{"$error":"#REF!"}},{"$f":"(1+C8)*(1-D8)*(1+J8)","v":{"$error":"#REF!"}},{"$f":"SUM(N8:O8)","v":{"$error":"#REF!"}},{"$f":"N7*$L8","v":{"$error":"#REF!"}},{"$f":"O7*$L8","v":{"$error":"#REF!"}},{"$f":"P7*$L8","v":{"$error":"#REF!"}},{"$f":"R8+S8+Z8+AA8+AB8+AC8+AD8+AE8+AF8","v":{"$error":"#REF!"}},{"$f":"R7*$L8","v":{"$error":"#REF!"}},{"$f":"SUM(T8:Y8)","v":{"$error":"#REF!"}},{"$f":"T7*$L8","v":{"$error":"#REF!"}},{"$error":"#REF!"},{"$error":"#REF!"},{"$error":"#REF!"},{"$error":"#REF!"},{"$error":"#REF!"},{"$error":"#REF!"},{"$error":"#REF!"},{"$error":"#REF!"},{"$error":"#REF!"},{"$error":"#REF!"},{"$error":"#REF!"},{"$error":"#REF!"},{"$f":"M8+P8+Q8","v":{"$error":"#REF!"}},{"$f":"#REF!","v":{"$error":"#REF!"}},{"$f":"#REF!","v":{"$error":"#REF!"}},{"$f":"#REF!","v":{"$error":"#REF!"}},null,{"$f":"SUM(AM8:AO8)","v":{"$error":"#REF!"}},{"$f":"#REF!","v":{"$error":"#REF!"}},{"$f":"#REF!","v":{"$error":"#REF!"}},{"$f":"#REF!+#REF!","v":{"$error":"#REF!"}},{"$f":"#REF!","v":{"$error":"#REF!"}},{"$f":"#REF!","v":{"$error":"#REF!"}},{"$f":"#REF!","v":{"$error":"#REF!"}},null,{"$f":"#REF!","v":{"$error":"#REF!"}},{"$f":"#REF!","v":{"$error":"#REF!"}},{"$f":"#REF!","v":{"$error":"#REF!"}},{"$f":"#REF!","v":{"$error":"#REF!"}},{"$f":"((AV8+AW8)/(BA8-AH8-AS8-AV8-AW8-AK8))","v":{"$error":"#REF!"}},{"$f":"AH8+AI8+AJ8+AL8+AQ8+AR8+AT8+AP8+AU8+AV8+AW8","v":{"$error":"#REF!"}},null,{"$f":"SUM(AY8,AZ8,AG8)","v":{"$error":"#REF!"}},null,{"$f":"BA8-BB8","v":{"$error":"#REF!"}},null,{"$f":"((BA8-BA7)/BA7)","v":{"$error":"#REF!"}},null,null,null,{"$f":"IF(BF8=0,0,BG8/BF8)","v":0},{"$f":"BG8*BH8","v":0},null,{"$f":"BJ8-BK8","v":0},{"$f":"((BJ8-BJ7)/BJ7)","v":{"$error":"#DIV/0!"}}]

{"sheet":"Форма 1.1","index":2,"n_rows":27,"n_cols":4,"rows_kept":27,"cut":false,"hidden":false,"merged":[[1,0,1,3],[5,0,5,3],[26,0,29,3],[3,1,3,3],[21,0,21,1],[21,2,21,4]]}
[]
["Форма 1.1 - Журнал учета текущей информации о прекращении передачи электрической энергии для потребителей услуг за 2014 год   "]
[]
[null,{"$f":"'Инф-я'!C9","v":"ОАО \"Ставровский завод автотракторного оборудования\""}]
[]
["(наименование территориальной сетевой организации)"]
["№","Период","Продолжительность прекращения,\nчас.","Количество точек присоединения потребителей услуг к электрической сети электросетевой организации, шт."]
[1,2,3,4]
[1,"январь",0,18]
[2,"февраль",0,18]
[3,"март",0,18]
[4,"апрель",0,18]
[5,"май",0,18]
[6,"июнь",0,18]
[7,"июль",0,18]
[8,"август",0,18]
[9,"сентябрь",0,18]
[10,"октябрь",0,18]
[11,"ноябрь",0,18]
[12,"декабрь",0,18]
[]
["Руководитель организации",null,{"$f":"'Инф-я'!$C$17","v":"Айзатуллин Сяяр Жафярович"}]
[]
[]
[]
[]
["Согласно п. 14 Постановления Правительства от 31.12.2009 г.  № 1220 организации предоставляют регулирующим органам до 1 апреля года, следующего за отчетным, отчетные данные, используемые при расчете фактических значений показателей надежности и качества"]

{"sheet":"Форма 1.2","index":3,"n_rows":10,"n_cols":6,"rows_kept":10,"cut":false,"hidden":false,"merged":[[9,1,9,2],[9,3,9,5],[1,0,1,4],[2,0,2,4],[3,0,3,4],[5,0,5,2],[6,0,6,2],[7,0,7,2]]}
[]
["Форма 1.2 - Расчет фактического показателя средней продолжительности прекращений передачи электрической энергии за 2014 год"]
[{"$f":"'Инф-я'!C9","v":"ОАО \"Ставровский завод автотракторного оборудования\""}]
["(наименование территориальной сетевой организации)"]
[]
["Максимальное за расчетный период",null,null,"Максимальное за расчетный период регулирования число точек присоединения  потребителей услуг к э. сети ТСО, шт.",{"$f":"MAX('Форма 1.1'!D9:D20)","v":18}," "]
["Суммарная продолжительность прекращений передачи электрической энергии, час. (Тпр)",null,null,"гр. 3 формы 1.1",{"$f":"SUM('Форма 1.1'!C9:C20)","v":0}]
["Показатель средней продолжительности прекращений передачи электрической энергии (Пп)",null,null,"Пп = Тпр/Nтп",{"$f":"IF(E6=0,0,E7/E6)","v":0}]
[]
[null,"Руководитель организации",null,{"$f":"'Инф-я'!$C$17","v":"Айзатуллин Сяяр Жафярович"}]

{"sheet":"Форма 2.1","index":4,"n_rows":36,"n_cols":9,"rows_kept":36,"cut":false,"hidden":false,"merged":[[5,2,5,3],[5,4,6,4],[5,5,6,6],[5,7,6,7],[12,5,12,6],[11,5,11,6],[13,5,13,6],[14,5,14,6],[15,5,15,6],[0,0,0,7],[1,0,1,7],[2,0,2,7],[5,0,6,0],[5,1,6,1],[23,5,23,6],[24,5,24,6],[25,5,25,6],[27,5,27,6],[16,5,16,6],[5,8,6,8],[7,5,7,6],[8,5,8,6],[9,5,9,6],[10,5,10,6],[28,5,28,6],[17,5,17,6],[26,5,26,6],[40,5,40,7],[29,5,29,6],[18,5,18,6],[19,5,19,6],[20,5,20,6],[21,5,21,6],[22,5,22,6],[38,2,38,4],[38,5,38,7],[35,0,35,1],[30,5,30,6],[31,5,31,6],[32,5,32,6],[33,5,33,6],[35,2,35,4]]}
["Форма 2.1 - Расчет значения индикатора информативности за 2014 год"]
[{"$f":"'Инф-я'!C9","v":"ОАО \"Ставровский завод автотракторного оборудования\""}]
["(наименование территориальной сетевой организации)"]
[]
[]
["Наименование параметра (критерия), характеризующего индикатор","Ед.изм-ния","Значение",null,"Ф / П * 100, %","Зависи-мость",null,"Оценочный балл ","Примечание"]
[null,null,"факти-ческое\n(Ф)","плановое\n(П)"]
[1,null,2,3,4,5,null,6]
["1. Возможность личного приема заявителей и потребителей услуг уполномоченными должностными лицами территориальной сетевой организации - всего,",null,"-","-","-","-",null,{"$f":"(H11+H12)/2","v":2}]
["в том числе, по критериям:"]
["1.1. Количество структурных подразделений по работе с заявителями и потребителями услуг в процентном отношении к общему количеству структурных подразделений","%",0.08,0.08,{"$f":"(IF(AND(D11=0,C11=0),1,IF(AND(D11=0,C11>0),1.2,C11/D11)))","v":1},"прямая",null,{"$f":"IF(E11<80%,3,IF(E11>120%,1,2))","v":2}," положительная динамика              факт ≥ плана"]
["1.2. Количество утвержденных территориальной сетевой организацией в установленном порядке организационно-распорядительных документов по вопросам работы с заявителями и потребителями услуг - всего, шт.","шт.",{"$f":"SUM(C14:C17)","v":13},{"$f":"SUM(D14:D17)","v":13},{"$f":"(IF(AND(D12=0,C12=0),1,IF(AND(D12=0,C12>0),1.2,C12/D12)))","v":1},"прямая",null,{"$f":"IF(E12<80%,3,IF(E12>120%,1,2))","v":2}," положительная динамика              факт ≥ плана"]
["в том числе:"]
["а) регламенты оказания услуг и рассмотрения обращений заявителей и потребителей услуг, шт.","шт.",0,0,{"$f":"(IF(AND(D14=0,C14=0),1,IF(AND(D14=0,C14>0),1.2,C14/D14)))","v":1},"прямая",null,"-"," положительная динамика              факт ≥ плана"]
["б) наличие положения о деятельности структурного подразделения по работе \nс заявителями и потребителями услуг , шт.","шт.",8,8,{"$f":"(IF(AND(D15=0,C15=0),1,IF(AND(D15=0,C15>0),1.2,C15/D15)))","v":1},"прямая",null,"-"," положительная динамика              факт ≥ плана"]
["в) должностные инструкции сотрудников, обслуживающих заявителей и потребителей услуг, шт.","шт.",5,5,{"$f":"(IF(AND(D16=0,C16=0),1,IF(AND(D16=0,C16>0),1.2,C16/D16)))","v":1},"прямая",null,"-"," положительная динамика              факт ≥ плана"]
["г) утвержденные территориальной сетевой организацией в установленном порядке формы отчетности о работе с заявителями и потребителями услуг, шт.","шт.",0,0,{"$f":"(IF(AND(D17=0,C17=0),1,IF(AND(D17=0,C17>0),1.2,C17/D17)))","v":1},"прямая",null,"-"," положительная динамика              факт ≥ плана"]
[]
["2. Наличие телефонной связи для обращений потребителей услуг к уполномоченным должностным лицам территориальной сетевой организации,",null,"-","-","-","-",null,{"$f":"(H21+H22+H23)/3","v":2}]
["в том числе по критериям:"]
["2.1. Наличие единого телефонного номера для приема обращений потребителей услуг (наличие - 1, отсутствие - 0)","(наличие - 1, отсутствие - 0)",1,1,{"$f":"(IF(AND(D21=0,C21=0),1,IF(AND(D21=0,C21>0),1.2,C21/D21)))","v":1},"прямая",null,{"$f":"IF(E21<80%,3,IF(E21>120%,1,2))","v":2}]
["2.2. Наличие информационно-справочной системы для автоматизации обработки обращений потребителей услуг, поступивших по телефону (наличие - 1, отсутствие - 0)","(наличие - 1, отсутствие - 0)",0,0,{"$f":"(IF(AND(D22=0,C22=0),1,IF(AND(D22=0,C22>0),1.2,C22/D22)))","v":1},"прямая",null,{"$f":"IF(E22<80%,3,IF(E22>120%,1,2))","v":2}]
["2.3. Наличие системы автоинформирования потребителей услуг по телефону, предназначенной для доведения до них типовой информации (наличие - 1, отсутствие - 0)","(наличие - 1, отсутствие - 0)",0,0,{"$f":"(IF(AND(D23=0,C23=0),1,IF(AND(D23=0,C23>0),1.2,C23/D23)))","v":1},"прямая",null,{"$f":"IF(E23<80%,3,IF(E23>120%,1,2))","v":2}]
[]
["3. Наличие в сети Интернет сайта территориальной сетевой организации с возможностью обмена информацией с потребителями услуг посредством электронной почты (наличие - 1, отсутствие - 0)","(наличие - 1, отсутствие - 0)",1,0,{"$f":"(IF(AND(D25=0,C25=0),1,IF(AND(D25=0,C25>0),1.2,C25/D25)))","v":1.2},"прямая",null,{"$f":"IF(E25<80%,3,IF(E25>120%,1,2))","v":2}]
["4. Проведение мероприятий по доведению до сведения потребителей услуг необходимой информации, в том числе путем ее размещения в сети Интернет, на бумажных носителях или иными доступными способами (проведение - 1, отсутствие - 0)","(наличие - 1, отсутствие - 0)",1,0,{"$f":"(IF(AND(D26=0,C26=0),1,IF(AND(D26=0,C26>0),1.2,C26/D26)))","v":1.2},"прямая",null,{"$f":"IF(E26<80%,3,IF(E26>120%,1,2))","v":2}]
["5. Простота и доступность схемы обжалования потребителями услуг действий должностных лиц территориальной сетевой организации, по критерию",null,"-","-","-","-",null,{"$f":"H28","v":2}]
["5.1. Общее количество обращений потребителей услуг о проведении консультаций по порядку обжалования действий (бездействия) территориальной сетевой организации в ходе исполнения своих функций в процентах от общего количества поступивших обращений","%",0,0,{"$f":"(IF(AND(D28=0,C28=0),1,IF(AND(D28=0,C28>0),1.2,C28/D28)))","v":1},"обратная",null,{"$f":"IF(E28<80%,1,IF(E28>120%,3,2))","v":2},"положительная динамика                   факт ≤ плана"]
["6. Степень полноты, актуальности и достоверности предоставляемой потребителям услуг информации о деятельности территориальной сетевой организации - всего,",null,"-","-","-","-",null,{"$f":"(H31+H32)/2","v":2}]
["в том числе по критериям:"]
["6.1. Общее количество обращений потребителей услуг о проведении консультаций по вопросам деятельности территориальной сетевой организации в процентах от общего количества поступивших обращений","%",0,0,{"$f":"(IF(AND(D31=0,C31=0),1,IF(AND(D31=0,C31>0),1.2,C31/D31)))","v":1},"обратная",null,{"$f":"IF(E31<80%,1,IF(E31>120%,3,2))","v":2},"положительная динамика                   факт ≤ плана"]
["6.2. Количество обращений потребителей услуг с указанием на отсутствие необходимой информации, которая должна быть раскрыта территориальной сетевой организацией в соответствии с нормативными правовыми актами, в процентах от общего количества поступивших обращений","%",0,0,{"$f":"(IF(AND(D32=0,C32=0),1,IF(AND(D32=0,C32>0),1.2,C32/D32)))","v":1},"обратная",null,{"$f":"IF(E32<80%,1,IF(E32>120%,3,2))","v":2},"положительная динамика                   факт ≤ плана"]
[]
["7. Итого по индикатору \nинформативности (Ин)","-","-","-","-","-",null,{"$f":"(H9+H19+H25+H26+H27+H29)/6","v":2}]
[]
["Руководитель организации",null,{"$f":"'Инф-я'!$C$17","v":"Айзатуллин Сяяр Жафярович"}]

{"sheet":"Форма 2.2","index":5,"n_rows":36,"n_cols":9,"rows_kept":36,"cut":false,"hidden":false,"merged":[[6,5,7,5],[6,6,7,6],[6,7,7,7],[13,8,19,8],[37,3,37,5],[37,6,37,8],[35,3,35,5],[6,8,7,8],[35,1,35,2],[8,0,8,1],[39,6,39,8],[2,0,2,7],[3,1,3,8],[4,1,4,8],[6,0,7,1],[6,2,7,2],[6,3,6,4]]}
[]
[]
["Форма 2.2 - Расчет значения индикатора исполнительности за 2014 год"]
[null,{"$f":"'Инф-я'!C9","v":"ОАО \"Ставровский завод автотракторного оборудования\""}]
[null,"(наименование территориальной сетевой организации)"]
[]
["Наименование параметра (показателя), характеризующего индикатор",null,"Ед.изм-ния","Значение",null,"Ф / П * 100, %","Зависи-мость","Оценочный балл ","Примечание"]
[null,null,null,"факти-ческое\n(Ф)","плановое\n(П)"]
[1,null,null,2,3,4,5,6]
[null,"1. Соблюдение требований нормативных правовых актов и договорных обязательств при оказании услуг по технологическому присоединению энергопринимающих устройств потребителей услуг (заявителей) к объектам электросетевого хозяйства территориальной сетевой организации - всего,",null,"-","-","-","-",{"$f":"(H12+H13)/2","v":2}]
[null,"в том числе, по критериям:"]
[null,"1.1. Среднее время на подготовку и направление проекта договора на осуществление технологического присоединения заявителю, дней","дней",0,0,{"$f":"(IF(AND(E12=0,D12=0),1,IF(AND(E12=0,D12>0),1.2,D12/E12)))","v":1},"обратная",{"$f":"IF(F12<80%,1,IF(F12>120%,3,2))","v":2},"положительная динамика                   факт ≤ плана"]
[null,"1.2. Среднее время на выполнение относящейся к территориальной сетевой организации части технических условий по договору на осуществление технологического присоединения, дней","дней",10,10,{"$f":"(IF(AND(E13=0,D13=0),1,IF(AND(E13=0,D13>0),1.2,D13/E13)))","v":1},"обратная",{"$f":"IF(F13<80%,1,IF(F13>120%,3,2))","v":2},"положительная динамика                   факт ≤ плана"]
[null,"2. Соблюдение сроков по процедурам взаимодействия с потребителями услуг (заявителями) - всего,",null,"-","-","-","-",{"$f":"(H16+H17+H20)/3","v":0.5},"нет прямых договоров на услугу по передаче ээ"]
[null,"в том числе по критериям:"]
[null,"2.1. Среднее время, затраченное территориальной сетевой организацией на направление проекта договора оказания услуг по передаче электрической энергии потребителю услуг (заявителю), дней","дней",0,0,{"$f":"(IF(AND(E16=0,D16=0),1,IF(AND(E16=0,D16>0),1.2,D16/E16)))","v":1},"обратная",{"$f":"IF(F16<80%,0.25,IF(F16>120%,0.75,0.5))","v":0.5}]
[null,"2.2. Среднее время, необходимое  для оборудования точки поставки приборами учета с момента подачи заявления потребителем услуг:","дней",{"$f":"(D18+D19)/2","v":0},{"$f":"(E18+E19)/2","v":0},1,"обратная",{"$f":"IF(F17<80%,0.25,IF(F17>120%,0.75,0.5))","v":0.5}]
[null,"а) для физических лиц, включая индивидуальных предпринимателей, и юридических лиц - субъектов малого и среднего предпринимательства, дней","дней",0,0,1,"-","-"]
[null,"б) для остальных потребителей услуг, дней","дней",0,0,1,"-","-"]
[null,"2.3. Количество случаев отказа от заключения и случаев расторжения потребителем услуг договоров оказания услуг по передаче электрической энергии в процентах от общего количества заключенных территориальной сетевой организацией договоров с потребителями услуг (заявителями), кроме физических лиц","%",0,0,1,"обратная",{"$f":"IF(F20<80%,0.25,IF(F20>120%,0.75,0.5))","v":0.5}]
[null,"3. Отсутствие (наличие) нарушений требований антимонопольного законодательства Российской Федерации, по критерию",null,"-","-","-","-",{"$f":"H22","v":0.2}]
[null,"3.1. Количество установленных вступившим в законную силу решением антимонопольного органа и (или) суда нарушений территориальной сетевой организацией требований антимонопольного законодательства Российской Федерации, в том числе, по фактам дискриминации потребителей услуг по доступу к услугам территориальной сетевой организации, а также по порядку оказания этих услуг, в процентах от общего количества поступивших заявок на технологическое присоединение","%",0,0,1,"обратная",{"$f":"IF(F22<80%,0.1,IF(F22>120%,0.3,0.2))","v":0.2},"положительная динамика                   факт ≤ плана"]
[null,"4. Отсутствие (наличие) нарушений требований законодательства Российской Федерации о государственном регулировании цен (тарифов), по критерию",null,"-","-","-","-",{"$f":"H24","v":0.2}]
[null,"4.1. Количество установленных вступившим в законную силу решением антимонопольного органа и (или) суда нарушений территориальной сетевой организацией требований в части государственного регулирования цен (тарифов), в процентах от общего количества поступивших заявок на технологическое присоединение","%",0,0,1,"обратная",{"$f":"IF(F24<80%,0.1,IF(F24>120%,0.3,0.2))","v":0.2},"положительная динамика                   факт ≤ плана"]
[null,"5. Соблюдение требований нормативных правовых актов Российской Федерации по поддержанию качества электрической энергии, по критерию",null,"-","-","-","-",{"$f":"H26","v":0.5}]
[null,"5.1. Количество обращений потребителей услуг с указанием на ненадлежащее качество электрической энергии, в процентах от общего количества поступивших обращений","%",0,0,1,"обратная",{"$f":"IF(F26<80%,0.25,IF(F26>120%,0.75,0.5))","v":0.5},"положительная динамика                   факт ≤ плана"]
[null,"6. Наличие взаимодействия с потребителями услуг при выводе оборудования в ремонт и (или) из эксплуатации",null,"-",{"$f":"D27","v":"-"},{"$f":"E27","v":"-"},"-",{"$f":"(H29+H30)/2","v":0.5}]
[null,"в том числе по критериям:"]
[null,"6.1. Наличие (отсутствие) установленной процедуры согласования с потребителями услуг графиков вывода электросетевого оборудования в ремонт и (или) из эксплуатации (наличие - 1, отсутствие - 0)","(наличие - 1, отсутствие - 0)",1,1,{"$f":"(IF(AND(E29=0,D29=0),1,IF(AND(E29=0,D29>0),1.2,D29/E29)))","v":1},"прямая",{"$f":"IF(F29<80%,0.75,IF(F29>120%,0.25,0.5))","v":0.5}]
[null,"6.2. Количество обращений потребителей услуг с указанием на несогласие введения предлагаемых территориальной сетевой организацией графиков вывода электросетевого оборудования в ремонт и (или) из эксплуатации, в процентах от общего количества поступивших обращений, кроме физических лиц","%",0,0,{"$f":"(IF(AND(E30=0,D30=0),1,IF(AND(E30=0,D30>0),1.2,D30/E30)))","v":1},"обратная",{"$f":"IF(F30<80%,0.25,IF(F30>120%,0.75,0.5))","v":0.5},"положительная динамика                   факт ≤ плана"]
[null,"7. Соблюдение требований нормативных правовых актов по защите персональных данных потребителей услуг (заявителей), по критерию",null,0,0,{"$f":"(IF(AND(E31=0,D31=0),1,IF(AND(E31=0,D31>0),1.2,D31/E31)))","v":1},"обратная",{"$f":"H32","v":0.2}]
[null,"7.1. Количество обращений потребителей услуг (заявителей) с указанием на неправомерность использования персональных данных потребителей услуг (заявителей), в процентах от общего количества поступивших обращений","%",0,0,{"$f":"(IF(AND(E32=0,D32=0),1,IF(AND(E32=0,D32>0),1.2,D32/E32)))","v":1},"обратная",{"$f":"IF(F32<80%,0.1,IF(F32>120%,0.3,0.2))","v":0.2},"положительная динамика                   факт ≤ плана"]
[]
[null,"8. Итого по индикатору \nисполнительности (Ис)","-","-","-","-","-",{"$f":"(H10+H14+H21+H23+H25+H27+H31)/7","v":0.58571428571428574}]
[]
[null,"Руководитель организации",null,{"$f":"'Инф-я'!$C$17","v":"Айзатуллин Сяяр Жафярович"}]

{"sheet":"форма 2.3","index":6,"n_rows":34,"n_cols":9,"rows_kept":34,"cut":false,"hidden":false,"merged":[[2,0,2,7],[3,0,3,7],[4,0,4,7],[6,0,7,0],[6,1,7,1],[6,2,6,3],[6,4,7,4],[6,5,7,5],[6,7,7,7],[6,8,7,8],[33,2,33,4],[33,5,33,7],[35,2,35,4],[35,5,35,7],[33,0,33,1]]}
[]
[]
["Форма 2.3 - Расчет значения индикатора результативности обратной связи за 2014 год"]
[{"$f":"'Инф-я'!C9","v":"ОАО \"Ставровский завод автотракторного оборудования\""}]
["(наименование территориальной сетевой организации)"]
[]
["Наименование параметра (показателя), характеризующего индикатор","Ед.изм-ния","Значение",null,"Ф / П * 100, %","Зависи-мость",null,"Оценочный балл ","Примечание"]
[null,null,"факти-ческое\n(Ф)","плановое\n(П)"]
[null,null,2,3,4,5,null,6]
["1. Наличие структурного подразделения территориальной сетевой организации по рассмотрению, обработке и принятию мер по обращениям потребителей услуг (наличие - 1, отсутствие - 0)","(наличие - 1, отсутствие - 0)",1,0,{"$f":"(IF(AND(D10=0,C10=0),1,IF(AND(D10=0,C10>0),1.2,C10/D10)))","v":1.2},"прямая",null,{"$f":"IF(E10<80%,3,IF(E10>120%,1,2))","v":2}]
["2. Степень удовлетворения обращений потребителей услуг",null,"-","-","-","-",null,{"$f":"(H13+H14+H15+H16+H17+H18)/6","v":2}]
["в том числе по критериям:"]
["2.1. Общее количество обращений потребителей услуг с указанием на ненадлежащее качество услуг по передаче электрической энергии и обслуживание, в процентах от общего количества поступивших обращений","%",0,0,{"$f":"(IF(AND(D13=0,C13=0),1,IF(AND(D13=0,C13>0),1.2,C13/D13)))","v":1},"обратная",null,{"$f":"IF(E13<80%,1,IF(E13>120%,3,2))","v":2},"положительная динамика                   факт ≤ плана"]
["2.2. Количество принятых мер по результатам рассмотрения обращений потребителей услуг с указанием на ненадлежащее качество услуг по передаче электрической энергии и обслуживание, в процентах от общего количества поступивших обращений","%",0,0,1,"прямая",null,{"$f":"IF(E14<80%,3,IF(E14>120%,1,2))","v":2},"положительная динамика                   факт ≥ плана"]
["2.3. Количество обращений, связанных с неудовлетворенностью принятыми мерами, указанными в п. 2.2 настоящей формы, поступивших от потребителей услуг в течение 30 рабочих дней после завершения мероприятий, указанных в п. 2.2 настоящей формы, в процентах от общего количества поступивших обращений","%",0,0,1,"обратная",null,{"$f":"IF(E15<80%,1,IF(E15>120%,3,2))","v":2},"положительная динамика                   факт ≤ плана"]
["2.4. Количество обращений потребителей услуг с указанием на ненадлежащее качество услуг, оказываемых территориальной сетевой организацией, поступивших в соответствующий контролирующий орган исполнительной власти, в процентах от общего количества поступивших обращений","%",0,0,1,"обратная",null,{"$f":"IF(E16<80%,1,IF(E16>120%,3,2))","v":2},"положительная динамика                   факт ≤ плана"]
["2.5. Количество отзывов и предложений по вопросам деятельности территориальной сетевой организации, поступивших через обратную связь, в процентах от общего количества поступивших обращений","%",0,0,1,"прямая",null,{"$f":"IF(E17<80%,3,IF(E17>120%,1,2))","v":2},"положительная динамика                   факт ≥ плана"]
["2.6. Количество реализованных изменений в деятельности организации, направленных на повышение качества обслуживания потребителей услуг, шт.","шт.",0,0,1,"прямая",null,{"$f":"IF(E18<80%,3,IF(E18>120%,1,2))","v":2},"положительная динамика                   факт ≥ плана"]
["3. Оперативность реагирования на обращения потребителей услуг - всего,",null,"-","-","-","-",null,{"$f":"(H21+H22)/2","v":2}]
["в том числе по критериям:"]
["3.1. Средняя продолжительность времени принятия мер по результатам обращения потребителя услуг, дней","дней",0,0,{"$f":"(IF(AND(D21=0,C21=0),1,IF(AND(D21=0,C21>0),1.2,C21/D21)))","v":1},"обратная",null,{"$f":"IF(E21<80%,1,IF(E21>120%,3,2))","v":2},"положительная динамика                   факт ≤ плана"]
["3.2. Взаимодействие территориальной сетевой организации с потребителями услуг с целью получения информации о качестве обслуживания, реализованное посредством:",null,"-","-","-","-",null,{"$f":"(H23+H24+H25)/3","v":2}]
["а) письменных опросов, шт. на 1000 потребителей услуг","шт. на 1000 потребителей услуг",0,0,1,"прямая",null,{"$f":"IF(E23<80%,3,IF(E23>120%,1,2))","v":2},"положительная динамика                   факт ≥ плана"]
["б) электронной связи через сеть Интернет, шт. на 1000 потребителей услуг","шт. на 1000 потребителей услуг",0,0,1,"прямая",null,{"$f":"IF(E24<80%,3,IF(E24>120%,1,2))","v":2},"положительная динамика                   факт ≥ плана"]
["в)* системы автоинформирования, \nшт. на 1000 потребителей услуг","шт. на 1000 потребителей услуг",0,0,1,"прямая",null,{"$f":"IF(E25<80%,3,IF(E25>120%,1,2))","v":2},"положительная динамика                   факт ≥ плана"]
["4. Индивидуальность подхода к потребителям услуг льготных категорий, по критерию",null,"-","-","-","-",null,{"$f":"H27","v":2}]
["4.1. Количество обращений потребителей услуг льготных категорий с указанием на неудовлетворительность качества их обслуживания, шт. на 1000 потребителей услуг","шт. на 1000 потребителей услуг",0,0,1,"обратная",null,{"$f":"IF(E27<80%,1,IF(E27>120%,3,2))","v":2},"положительная динамика                   факт ≤ плана"]
["5. Оперативность возмещения убытков потребителям услуг при несоблюдении территориальной сетевой организацией обязательств, предусмотренных нормативными правовыми актами и договорами",null,"-","-","-","-",null,{"$f":"(H30+H31)/2","v":2}]
["в том числе по критериям:"]
["5.1. Средняя продолжительность времени на принятие территориальной сетевой организацией мер по возмещению потребителю услуг убытков, месяцев","месяцев",0,0,{"$f":"(IF(AND(D30=0,C30=0),1,IF(AND(D30=0,C30>0),1.2,C30/D30)))","v":1},"обратная",null,{"$f":"IF(E30<80%,1,IF(E30>120%,3,2))","v":2},"положительная динамика                   факт ≤ плана"]
["5.2. Доля потребителей услуг, получивших возмещение убытков, возникших в результате неисполнения (ненадлежащего исполнения) территориальной сетевой организацией своих обязательств, от числа потребителей, в пользу которых было вынесено судебное решение, или возмещение было произведено во внесудебном порядке, %","%",0,0,{"$f":"(IF(AND(D31=0,C31=0),1,IF(AND(D31=0,C31>0),1.2,C31/D31)))","v":1},"прямая",null,{"$f":"IF(E31<80%,3,IF(E31>120%,1,2))","v":2},"положительная динамика                   факт ≥ плана"]
["6. Итого по индикатору результативности обратной связи (Рс)","-","-","-","-","-",null,{"$f":"(H10+H11+H19+H26+H28)/5","v":2}]
[]
["Руководитель организации",null,{"$f":"'Инф-я'!$C$17","v":"Айзатуллин Сяяр Жафярович"}]

{"sheet":"форма 2.4","index":7,"n_rows":16,"n_cols":3,"rows_kept":16,"cut":false,"hidden":false,"merged":[[15,1,15,2],[18,1,18,2],[3,0,3,2],[1,0,2,2],[4,0,4,2],[5,0,5,2],[7,1,9,1],[8,0,9,0],[14,0,14,2]]}
[]
["Форма 2.4 - Расчет фактического значения показателя уровня качества оказываемых услуг территориальной (прочей) сетевой организацией за 2014 год"]
[]
[{"$f":"'Инф-я'!C9","v":"ОАО \"Ставровский завод автотракторного оборудования\""}]
[]
["(наименование территориальной сетевой организации)"]
[]
[null,"Ед.изм-ния"]
["Предлагаемые плановые значения параметров (критериев), характеризующих индикаторы качества **",null,"2014"]
[null,null,"(год)"]
["Ин (индикатор информативности) ",null,{"$f":"'Форма 2.1'!H34","v":2}]
["Ис ( индикатор исполнительности)",null,{"$f":"ROUND('Форма 2.2'!H34,3)","v":0.58599999999999997}]
["Рс (индикатор результативности обратной связи)",null,{"$f":"'форма 2.3'!H32","v":2}]
["Фактическое значение показателя уровня качества оказываемых услуг территориальной сетевой организации",null,{"$f":"0.1*C11+0.7*C12+0.2*C13","v":1.0102}]
[]
["Руководитель организации",{"$f":"'Инф-я'!$C$17","v":"Айзатуллин Сяяр Жафярович"}]

{"sheet":"Выбор оценочного балла","index":8,"n_rows":8,"n_cols":3,"rows_kept":8,"cut":false,"hidden":false,"merged":[[1,0,1,2],[3,0,3,1],[3,2,4,2],[6,0,6,1]]}
[]
["Выбор оценочного балла"]
[]
["Принимаемое значение (Ф / П * 100, % )                             (гр.4 форм 2.1-2.3) ",null,"Оценочный балл                                                           (гр.6 форм 2.1 - 2.3)"]
["прямая зависимость                     (гр.5 форм 2.1 - 2.3)","обратная  зависимость                   (гр.5 форм 2.1 - 2.3)"]
["гр.4 форм 2.1-2.3 < 80%","гр.4 форм 2.1-2.3 > 120 %","3 балла - для всех пунктов форм 2.1 - 2.3                                                                                    кроме:                                                                 0,75 баллов -  для п. 2, 5, 6 формы 2.2                 0,3 балла - для п. 3,4,7 формы 2.2"]
["80 % ≤ гр.4 форм 2.1-2.3 ≤ 120 %",null,"2 балла - для всех пунктов форм 2.1 - 2.3                                                                               кроме:                                                                 0,5 баллов -  для п. 2, 5, 6 формы 2.2                    0,2 балла - для п. 3,4,7 формы 2.2"]
["гр.4 форм 2.1-2.3 > 120 %","гр.4 форм 2.1-2.3 < 80%","1 балл - для всех пунктов форм 2.1 - 2.3                                                                               кроме:                                                                 0,25 баллов -  для п. 2, 5, 6 формы 2.2                 0,1 балла - для п. 3,4,7 формы 2.2"]